fUSD/lending_fUSD_20260106
["ID","MTS","AMOUNT","RATE_DAILY","PERIOD"]
[400576624,1767730240747,-500.0,0.00019973,2]
[400576625,1767730240756,-484.20975983,0.00019973,2]
[400576626,1767730240765,-165.9677284,0.00019973,2]
[400576627,1767730240775,-500.0,0.00019973,2]
[400576628,1767730240784,-500.0,0.00019973,2]
[400576629,1767730240793,-500.0,0.00019973,2]
[400576630,1767730240802,-500.0,0.00019973,2]
[400576631,1767730240812,-500.0,0.00019973,2]
[400576632,1767730240821,-500.0,0.00019973,2]
[400576633,1767730240835,-500.0,0.00019973,2]
[400576634,1767730240844,-557.25951584,0.00019973,2]
[400576635,1767730240853,-156.89496894,0.00019973,2]
[400576636,1767730240862,-500.63676035,0.00019973,2]
[400576637,1767730240871,-501.82128639,0.00019973,2]
[400576638,1767730240880,-500.46857812,0.00019973,2]
[400576639,1767730240889,-510.73735296,0.00019973,2]
[400576640,1767730240898,-500.0,0.00019973,2]
[400576641,1767730240908,-178.52671345,0.00019973,2]
[400576642,1767730240917,-500.0,0.00019973,2]
[400576643,1767730240926,-169.01681291,0.00019973,2]
[400576644,1767730240935,-500.0,0.00019973,2]
[400576645,1767730240944,-500.0,0.00019973,2]
[400576646,1767730240954,-500.0,0.00019973,2]
[400576647,1767730240963,-165.23613821,0.00019973,2]
[400576648,1767730240972,-510.33159281,0.00019973,2]
[400576649,1767730240985,-500.0,0.00019973,2]
[400576650,1767730240994,-500.0,0.00019973,2]
[400576651,1767730241003,-164.10524853,0.00019973,2]
[400576652,1767730241013,-500.0,0.00019973,2]
[400576653,1767730241022,-167.31133184,0.00019973,2]
[400576654,1767730241032,-500.0,0.00019973,2]
[400576655,1767730241042,-500.0,0.00019973,2]
[400576656,1767730241051,-500.0,0.00019973,2]
[400576657,1767730241060,-500.0,0.00019973,2]
[400576658,1767730241070,-507.38261444,0.00019973,2]
[400576659,1767730241080,-161.4599478,0.00019973,2]
[400576660,1767730241089,-375.23723038,0.00019973,2]
[400576661,1767730241098,-500.46835088,0.00019973,2]
[400576662,1767730241107,-500.0,0.00019973,2]
[400576663,1767730241116,-160.57760784,0.00019973,2]
[400576664,1767730241126,-500.0,0.00019973,2]
[400576665,1767730241135,-207.95982473,0.00019973,2]
[400576666,1767730241144,-500.0,0.00019973,2]
[400576667,1767730241153,-162.01757701,0.00019973,2]
[400576668,1767730241163,-288.0,0.00020033,2]
[400576669,1767730241173,-468.27387436,0.00020085,2]
[400576670,1767730241187,-288.0,0.00020136,2]
[400576671,1767730241196,-1277.26,0.00020193,2]
[400576672,1767730241205,-288.0,0.00020213,2]
[400576673,1767730241215,-288.0,0.00020286,2]
[400576674,1767730241224,-288.0,0.00020325,2]
[400576675,1767730241234,-1402.72,0.00020361,2]
[400576676,1767730241244,-288.0,0.00020418,2]
[400576677,1767730241256,-1180.21,0.00020443,2]
[400576678,1767730241266,-288.0,0.00020453,2]
[400576679,1767730241275,-1277.26,0.00020467,2]
[400576680,1767730241285,-500.0,0.00020521,2]
[400576681,1767730241295,-514.89956747,0.00020521,2]
[400576682,1767730241306,-278.74307495,0.00020521,2]
[400576683,1767730241317,-500.0,0.00020521,2]
[400576684,1767730241327,-501.24603773,0.00020521,2]
[400576685,1767730241340,-500.88460958,0.00020521,2]
[400576686,1767730241349,-501.21488025,0.00020521,2]
[400576687,1767730241359,-182.50256145,0.00020521,2]
[400576688,1767730241369,-500.45881182,0.00020521,2]
[400576689,1767730241378,-500.0,0.00020521,2]
[400576690,1767730241388,-397.67768692,0.00020521,2]
[400576691,1767730241397,-1140.98789269,0.00020521,2]
[400576692,1767730241406,-500.0,0.00020521,2]
[400576693,1767730241416,-500.0,0.00020521,2]
[400576694,1767730241425,-501.32610001,0.00020521,2]
[400576695,1767730241434,-500.0,0.00020521,2]
[400576696,1767730241443,-500.0,0.00020521,2]
[400576697,1767730241452,-500.0,0.00020521,2]
[400576698,1767730241462,-501.29131145,0.00020521,2]
[400576699,1767730241471,-545.59988784,0.00020521,2]
[400576700,1767730241480,-554.45007798,0.00020521,2]
[400576701,1767730241489,-1000.0,0.00020521,2]
[400576702,1767730241498,-1000.0,0.00020521,2]
[400576703,1767730241507,-2629.6,0.00020535,2]
[400576704,1767730241516,-288.0,0.00020698,2]
[400576705,1767730241525,-158.81,0.00020709,2]
[400576706,1767730241534,-1277.28673601,0.00020741,2]
[400576707,1767730241544,-2260.8819225,0.00020763,2]
[400576708,1767730241553,-246.49,0.0002086,2]
[400576709,1767730241562,-707.91,0.00020864,2]
[400576710,1767730241571,-442.24,0.00020991,2]
[400576711,1767730241580,-1500.0,0.00021068,2]
[400576712,1767730241590,-502.71068525,0.00021068,2]
[400576713,1767730241599,-823.0,0.00021232,2]
[400576714,1767730241608,-442.24,0.00021265,2]
[400576715,1767730241618,-166.67,0.0002133,2]
[400576716,1767730241627,-250.0,0.00021483,2]
[400576717,1767730241636,-1117.0,0.00021552,2]
[400576718,1767730241645,-707.91,0.00021812,2]
[400576719,1767730241655,-258.79509396,0.00021908,2]
[400576720,1767730241664,-500.0,0.00021918,2]
[400576721,1767730241673,-500.0,0.00021918,2]
[400576722,1767730241682,-500.0,0.00021918,2]
[400576723,1767730241692,-500.0,0.00021918,2]
[400576724,1767730241701,-500.0,0.00021918,2]
[400576725,1767730241710,-500.0,0.00021918,2]
[400576726,1767730241720,-567.54575972,0.00021918,2]
[400576727,1767730241730,-500.0,0.00021918,2]
[400576728,1767730241740,-500.0,0.00021918,2]
[400576729,1767730241750,-500.0,0.00021918,2]
[400576730,1767730241759,-500.0,0.00021918,2]
[400576731,1767730241769,-500.0,0.00021918,2]
[400576732,1767730241779,-500.0,0.00021918,2]
[400576733,1767730241789,-500.0,0.00021918,2]
[400576734,1767730241799,-500.0,0.00021918,2]
[400576735,1767730241809,-500.0,0.00021918,2]
[400576736,1767730241819,-500.0,0.00021918,2]
[400576737,1767730241828,-500.0,0.00021918,2]
[400576738,1767730241839,-500.0,0.00021918,2]
[400576739,1767730241849,-500.0,0.00021918,2]
[400576740,1767730241859,-500.0,0.00021918,2]
[400576741,1767730241869,-500.0,0.00021918,2]
[400576742,1767730241878,-500.0,0.00021918,2]
[400576743,1767730241888,-500.0,0.00021918,2]
[400576744,1767730241899,-500.0,0.00021918,2]
[400576745,1767730241908,-500.0,0.00021918,2]
[400576746,1767730241917,-500.0,0.00021918,2]
[400576747,1767730241927,-500.0,0.00021918,2]
[400576748,1767730241936,-500.0,0.00021918,2]
[400576749,1767730241947,-500.0,0.00021918,2]
[400576750,1767730241956,-250.0,0.00021918,2]
[400576751,1767730241966,-4736.98,0.00022,7]
[400576752,1767730241975,-17077.91452929,0.00022203,2]
[400576753,1767730241985,-3993.55383927,0.0002224,2]
[400576754,1767730241994,-2629.6,0.00022619,2]
[400576755,1767730242003,-707.91,0.00022761,2]
[400576756,1767730242012,-2260.8819225,0.00022915,2]
[400576757,1767730242022,-166.67,0.00022956,2]
[400576758,1767730242162,-1000.0,0.00022962,2]
[400576759,1767730242172,-459.60853334,0.00022962,2]
[400576760,1767730242184,-449.69501018,0.00023061,2]
[400576761,1767730242193,-621.72362606,0.00023061,2]
[400576762,1767730242202,-488.74590428,0.00023061,2]
[400576763,1767730242212,-750.0,0.00023207,2]
[400576764,1767730242222,-468.27387436,0.00023963,2]
[400576765,1767730242231,-362.92767532,0.00024658,6]
[400576766,1767730242241,-2629.6,0.00024704,2]
[400576767,1767730242251,-500.0,0.00024799,2]
[400576768,1767730242261,-500.0,0.00024799,2]
[400576769,1767730242271,-319744.913798,0.000248,3]
[400576770,1767730242280,-465.27484986,0.00025089,2]
[400576771,1767730242290,-17077.91452929,0.00025225,2]
[400576772,1767730242299,-3993.55383927,0.00025256,2]
[400576773,1767730242309,-44374.87,0.00025567,2]
[400576774,1767730242318,-830.675,0.00025638,2]
[400576775,1767730242327,-1364.493,0.00025638,2]
[400576776,1767730242338,-3475.321,0.00025638,2]
[400576777,1767730242348,-1268.108,0.00025638,2]
[400576778,1767730242357,-438.455,0.00025638,2]
[400576779,1767730242366,-1215.798,0.00025668,2]
[400576780,1767730242375,-4817.0,0.00025668,2]
[400576781,1767730242385,-565.0,0.00025668,2]
[400576782,1767730242395,-2435.0,0.00025668,2]
[400576783,1767730242404,-4736.98,0.000257,7]
[400576784,1767730242414,-723.90239833,0.00025789,2]
[400576785,1767730242424,-500.0,0.00026028,2]
[400576786,1767730242434,-620.0,0.00026028,2]
[400576787,1767730242444,-500.0,0.00026028,2]
[400576788,1767730242454,-500.0,0.00026028,2]
[400576789,1767730242464,-500.0,0.00026028,2]
[400576790,1767730242474,-500.0,0.00026028,2]
[400576791,1767730242483,-500.0,0.00026028,2]
[400576792,1767730242492,-500.0,0.00026028,2]
[400576793,1767730242503,-287.61899177,0.00026028,2]
[400576794,1767730242512,-500.0,0.00026028,2]
[400576795,1767730242522,-500.0,0.00026028,2]
[400576796,1767730242531,-500.0,0.00026028,2]
[400576797,1767730242540,-500.0,0.00026028,2]
[400576798,1767730242550,-500.0,0.00026028,2]
[400576799,1767730242559,-500.0,0.00026028,2]
[400576800,1767730242568,-500.0,0.00026028,2]
[400576801,1767730242577,-500.0,0.00026028,2]
[400576802,1767730242586,-500.0,0.00026028,2]
[400576803,1767730242595,-500.0,0.00026028,2]
[400576804,1767730242604,-500.0,0.00026028,2]
[400576805,1767730242613,-500.0,0.00026028,2]
[400576806,1767730242622,-500.0,0.00026028,2]
[400576807,1767730242632,-500.0,0.00026028,2]
[400576808,1767730242641,-500.0,0.00026028,2]
[400576809,1767730242650,-459.60853331,0.00026362,2]
[400576810,1767730242659,-2629.6,0.00026788,2]
[400576811,1767730242669,-183.83,0.00026965,2]
[400576812,1767730242679,-642.94,0.00027397,2]
[400576813,1767730242689,-483.90356709,0.00027397,34]
[400576814,1767730242698,-479.6,0.00027397,6]
[400576815,1767730242709,-351.2,0.00027397,7]
[400576816,1767730242719,-500.0,0.00027397,20]
[400576817,1767730242729,-271.63,0.00027397,30]
[400576818,1767730242738,-158.77343996,0.00027397,5]
[400576819,1767730242749,-150.0,0.00027397,5]
[400576820,1767730242758,-468.27387436,0.00027842,2]
[400576821,1767730242769,-250.0,0.00027945,5]
[400576822,1767730242779,-250.0,0.00028105,2]
[400576823,1767730242788,-3993.55383927,0.00028273,2]
[400576824,1767730242797,-200.0,0.00028342,2]
[400576825,1767730242806,-264.0,0.00028342,2]
[400576826,1767730242817,-212.0,0.00028342,2]
[400576827,1767730242826,-214.912,0.00028342,2]
[400576828,1767730242836,-250.0,0.00028342,2]
[400576829,1767730242846,-225.996,0.00028342,2]
[400576830,1767730242855,-250.0,0.00028342,2]
[400576831,1767730242864,-157.238,0.00028342,2]
[400576832,1767730242874,-297.977,0.00028342,2]
[400576833,1767730242883,-163.753,0.00028342,2]
[400576834,1767730242893,-250.0,0.00028342,2]
[400576835,1767730242903,-211.897,0.00028342,2]
[400576836,1767730242912,-250.0,0.00028342,2]
[400576837,1767730242921,-227.625,0.00028342,2]
[400576838,1767730242930,-168.0,0.00028342,2]
[400576839,1767730242940,-350.0,0.00028493,5]
[400576840,1767730242949,-1329.0,0.00028638,2]
[400576841,1767730242959,-3466.0,0.00028638,2]
[400576842,1767730242970,-1266.0,0.00028638,2]
[400576843,1767730242980,-433.0,0.00028638,2]
[400576844,1767730242989,-1200.0,0.00028668,2]
[400576845,1767730242999,-4817.0,0.00028668,2]
[400576846,1767730243009,-565.0,0.00028668,2]
[400576847,1767730243019,-2435.0,0.00028668,2]
[400576848,1767730243028,-666.72878,0.00028766,2]
[400576849,1767730243037,-2629.6,0.00028873,2]
[400576850,1767730243047,-4736.98,0.000289,7]
[400576851,1767730243057,-5288.0,0.00029041,5]
[400576852,1767730243067,-450.0,0.00029041,5]
[400576853,1767730243077,-281.95,0.0002906,2]
[400576854,1767730243089,-432.31509578,0.00029589,5]
[400576855,1767730243110,-459.60853331,0.00029763,2]
[400576856,1767730243125,-501.0,0.00029877,2]
[400576857,1767730243144,-153.17868972,0.00030051,2]
[400576858,1767730243162,-1000.0,0.00030057,2]
[400576859,1767730243181,-401.326939,0.000301,2]
[400576860,1767730243197,-550.33122,0.00030135,2]
[400576861,1767730243213,-171.57,0.000306,30]
[400576862,1767730243231,-2629.6,0.00030957,2]
[400576863,1767730243248,-1983.0,0.00031,2]
[400576864,1767730243269,-150.0,0.00031105,2]
[400576865,1767730243286,-236.74555436,0.00031224,6]
[400576869,1767730243305,-3993.55383927,0.0003129,2]
[400576873,1767730243320,-150.0,0.00031342,2]
[400576874,1767730243335,-150.0,0.00031342,2]
[400576875,1767730243350,-150.0,0.00031342,2]
[400576876,1767730243369,-150.0,0.00031342,2]
[400576878,1767730243381,-150.0,0.00031342,2]
[400576879,1767730243398,-150.0,0.00031342,2]
[400576880,1767730243412,-150.0,0.00031342,2]
[400576881,1767730243426,-150.0,0.00031342,2]
[400576882,1767730243441,-150.0,0.00031342,2]
[400576883,1767730243455,-150.0,0.00031342,2]
[400576884,1767730243470,-150.0,0.00031342,2]
[400576885,1767730243485,-888.16,0.000314,14]
[400576886,1767730243500,-501.0,0.00031443,3]
[400576887,1767730243514,-1329.0,0.00031638,2]
[400576888,1767730243533,-3466.0,0.00031638,2]
[400576889,1767730243547,-1266.0,0.00031638,2]
[400576890,1767730243561,-433.0,0.00031638,2]
[400576891,1767730243575,-1200.0,0.00031668,2]
[400576892,1767730243590,-4817.0,0.00031668,2]
[400576893,1767730243605,-565.0,0.00031668,2]
[400576894,1767730243619,-2435.0,0.00031668,2]
[400576895,1767730243633,-468.27387436,0.00031721,2]
[400576896,1767730243648,-271.63,0.00031723,30]
[400576897,1767730243664,-4736.98,0.000318,7]
[400576898,1767730243678,-1108.52730285,0.00032213,5]
[400576899,1767730243693,-1070.94797848,0.00032213,5]
[400576900,1767730243707,-1030.95683837,0.00032213,5]
[400576901,1767730243721,-1022.62994946,0.00032213,5]
[400576902,1767730243736,-1129.4503918,0.00032213,5]
[400576903,1767730243752,-1078.89730026,0.00032213,5]
[400576904,1767730243766,-1053.22487982,0.00032213,5]
[400576905,1767730243781,-1105.06992281,0.00032213,5]
[400576906,1767730243795,-1000.06392907,0.00032218,5]
[400576907,1767730243809,-1039.83892267,0.00032218,5]
[400576908,1767730243823,-1100.31461126,0.00032218,5]
[400576909,1767730243837,-1085.27050985,0.00032218,5]
[400576910,1767730243851,-1090.0423213,0.00032218,5]
[400576911,1767730243865,-1099.41380828,0.00032218,5]
[400576912,1767730243880,-1066.391594,0.00032218,5]
[400576913,1767730243895,-1146.6315457,0.00032218,5]
[400576914,1767730243909,-183.83,0.00032711,2]
[400576915,1767730243923,-200.0,0.00032876,2]
[400576916,1767730243937,-501.0483089,0.00032877,5]
[400576917,1767730243951,-200.0,0.00032877,2]
[400576918,1767730243965,-500.0,0.00032877,7]
[400576919,1767730243979,-500.0,0.00032877,7]
[400576920,1767730243993,-500.0,0.00032877,7]
[400576921,1767730244007,-500.0,0.00032877,7]
[400576922,1767730244022,-500.0,0.00032877,7]
[400576923,1767730244036,-500.0,0.00032877,7]
[400576924,1767730244050,-500.0,0.00032877,7]
[400576925,1767730244064,-500.0,0.00032877,7]
[400576926,1767730244078,-500.0,0.00032877,7]
[400576927,1767730244091,-500.0,0.00032877,7]
[400576928,1767730244105,-500.0,0.00032877,7]
[400576929,1767730244120,-500.0,0.00032877,7]
[400576930,1767730244133,-500.0,0.00032877,7]
[400576931,1767730244147,-500.0,0.00032877,7]
[400576932,1767730244161,-500.0,0.00032877,7]
[400576933,1767730244176,-500.0,0.00032877,7]
[400576934,1767730244194,-500.0,0.00032877,7]
[400576935,1767730244208,-500.0,0.00032877,7]
[400576936,1767730244223,-500.0,0.00032877,7]
[400576937,1767730244237,-500.0,0.00032877,7]
[400576938,1767730244251,-500.0,0.00032877,7]
[400576939,1767730244267,-500.0,0.00032877,7]
[400576940,1767730244282,-500.0,0.00032877,7]
[400576941,1767730244296,-500.0,0.00032877,7]
[400576942,1767730244311,-500.0,0.00032877,7]
[400576943,1767730244325,-500.0,0.00032877,7]
[400576944,1767730244341,-500.0,0.00032877,7]
[400576945,1767730244355,-500.0,0.00032877,7]
[400576946,1767730244371,-500.0,0.00032877,7]
[400576947,1767730244386,-500.0,0.00032877,7]
[400576948,1767730244405,-500.0,0.00032877,7]
[400576949,1767730244418,-500.0,0.00032877,7]
[400576950,1767730244429,-500.0,0.00032877,7]
[400576951,1767730244438,-500.0,0.00032877,7]
[400576952,1767730244448,-500.0,0.00032877,7]
[400576953,1767730244457,-500.0,0.00032877,7]
[400576954,1767730244467,-500.0,0.00032877,7]
[400576955,1767730244476,-500.0,0.00032877,7]
[400576956,1767730244486,-500.0,0.00032877,7]
[400576957,1767730244495,-500.0,0.00032877,7]
[400576958,1767730244504,-500.0,0.00032877,7]
[400576959,1767730244775,-500.0,0.00032877,7]
[400576960,1767730244803,-202.85896211,0.00032877,7]
[400576961,1767730244823,-500.0,0.00032877,7]
[400576962,1767730244833,-500.0,0.00032877,7]
[400576963,1767730244844,-500.0,0.00032877,7]
[400576964,1767730244853,-500.0,0.00032877,7]
[400576965,1767730244863,-500.0,0.00032877,7]
[400576966,1767730244872,-500.0,0.00032877,7]
[400576968,1767730244883,-500.0,0.00032877,7]
[400576970,1767730244892,-500.0,0.00032877,7]
[400576972,1767730244902,-500.0,0.00032877,7]
[400576974,1767730244912,-500.0,0.00032877,7]
[400576976,1767730244922,-500.0,0.00032877,7]
[400576978,1767730244932,-500.0,0.00032877,7]
[400576980,1767730244941,-500.0,0.00032877,7]
[400576982,1767730244950,-500.0,0.00032877,7]
[400576983,1767730244959,-500.0,0.00032877,7]
[400576984,1767730244968,-300.0,0.00032877,7]
[400576985,1767730244978,-500.0,0.00032877,7]
[400576986,1767730244987,-500.0,0.00032877,7]
[400576987,1767730244996,-500.0,0.00032877,7]
[400576988,1767730245006,-500.0,0.00032877,7]
[400576989,1767730245015,-500.0,0.00032877,7]
[400576990,1767730245024,-500.0,0.00032877,7]
[400576991,1767730245034,-500.0,0.00032877,7]
[400576992,1767730245043,-500.0,0.00032877,7]
[400576993,1767730245052,-670.43,0.000329,14]
[400576994,1767730245062,-519.92,0.000329,14]
[400576995,1767730245071,-554.672824,0.00033,14]
[400576996,1767730245083,-501.0,0.00033009,5]
[400576997,1767730245093,-2629.6,0.00033042,3]
[400576998,1767730245103,-459.60853331,0.00033163,2]
[400576999,1767730245114,-200.0,0.00033206,2]
[400577000,1767730245124,-200.0,0.000334,2]
[400577001,1767730245134,-300.0,0.000334,2]
[400577002,1767730245143,-978.0,0.000334,2]
[400577003,1767730245153,-200.0,0.00033538,2]
[400577004,1767730245162,-7594.0,0.000338,2]
[400577005,1767730245172,-200.0,0.00033873,2]
[400577006,1767730245185,-150.0,0.00034105,2]
[400577007,1767730245195,-2664.48,0.000342,30]
[400577008,1767730245205,-200.0,0.00034212,2]
[400577009,1767730245215,-465.27484984,0.00034223,2]
[400577010,1767730245224,-3993.55383927,0.00034307,2]
[400577011,1767730245235,-150.0,0.00034342,2]
[400577012,1767730245244,-150.0,0.00034342,2]
[400577013,1767730245255,-150.0,0.00034342,2]
[400577014,1767730245264,-150.0,0.00034342,2]
[400577015,1767730245274,-150.0,0.00034342,2]
[400577016,1767730245283,-5532.0,0.000344,3]
[400577017,1767730245293,-501.0,0.00034576,7]
[400577018,1767730245302,-304.13144408,0.00034604,3]
[400577019,1767730245312,-1329.0,0.00034638,2]
[400577020,1767730245322,-3466.0,0.00034638,2]
[400577021,1767730245332,-1266.0,0.00034638,2]
[400577022,1767730245342,-1200.0,0.00034668,2]
[400577023,1767730245351,-4817.0,0.00034668,2]
[400577024,1767730245361,-565.0,0.00034668,2]
[400577025,1767730245370,-2435.0,0.00034668,2]
[400577026,1767730245381,-1983.10251088,0.000347,2]
[400577027,1767730245390,-519.92,0.000347,14]
[400577028,1767730245400,-549.67835987,0.00034935,30]
[400577029,1767730245411,-2629.6,0.00035126,4]
[400577030,1767730245422,-670.43,0.000352,14]
[400577031,1767730245431,-416.9074,0.0003522,30]
[400577032,1767730245442,-468.27387436,0.000356,2]
[400577033,1767730245452,-719.4,0.00035616,25]
[400577034,1767730245463,-362.92767531,0.00035616,71]
[400577035,1767730245473,-526.8,0.00035616,22]
[400577036,1767730245482,-300.0,0.00035616,5]
[400577037,1767730245492,-500.0,0.00035616,7]
[400577038,1767730245501,-500.0,0.00035616,7]
[400577039,1767730245511,-500.0,0.00035616,7]
[400577040,1767730245520,-500.0,0.00035616,7]
[400577041,1767730245530,-500.0,0.00035616,7]
[400577042,1767730245539,-500.0,0.00035616,7]
[400577044,1767730245548,-500.0,0.00035616,7]
[400577045,1767730245558,-500.0,0.00035616,7]
[400577046,1767730245567,-293.45814038,0.00035616,7]
[400577047,1767730245576,-500.0,0.00035616,7]
[400577048,1767730245585,-500.0,0.00035616,7]
[400577049,1767730245594,-500.0,0.00035616,7]
[400577050,1767730245604,-500.0,0.00035616,7]
[400577051,1767730245613,-1333.086,0.00035641,42]
[400577052,1767730245622,-165.31780959,0.00035641,42]
[400577053,1767730245632,-384.68,0.000358,120]
[400577054,1767730245643,-1000.0,0.0003601,7]
[400577055,1767730245652,-271.63,0.00036049,30]
[400577056,1767730245662,-501.0,0.00036142,9]
[400577057,1767730245671,-600.0,0.00036438,5]
[400577058,1767730245681,-459.60853331,0.00036563,2]
[400577059,1767730245690,-519.92,0.000368,14]
[400577061,1767730245699,-150.0,0.00037105,2]
[400577062,1767730245708,-32524.65,0.00037187,20]
[400577063,1767730245718,-670.43,0.000372,14]
[400577064,1767730245729,-2629.6,0.00037211,5]
[400577065,1767730245738,-900.0,0.0003726,5]
[400577066,1767730245748,-3993.55383927,0.00037323,2]
[400577067,1767730245757,-3466.0,0.00037638,2]
[400577068,1767730245767,-1266.0,0.00037638,2]
[400577069,1767730245777,-4817.0,0.00037668,2]
[400577070,1767730245786,-565.0,0.00037668,2]
[400577071,1767730245796,-2435.0,0.00037668,2]
[400577072,1767730245805,-501.0,0.00037708,11]
[400577073,1767730245815,-232.48757784,0.00037819,120]
[400577074,1767730245824,-1200.0,0.00038082,5]
[400577075,1767730245834,-150.46,0.000381,20]
[400577076,1767730245843,-237.12745582,0.00038186,120]
[400577077,1767730245852,-1000.0,0.00038356,5]
[400577078,1767730245863,-234.95655114,0.00038369,2]
[400577079,1767730245873,-519.92,0.000387,14]
[400577080,1767730245883,-992.86947112,0.00038767,5]
[400577081,1767730245894,-7203.9545594,0.000388,2]
[400577082,1767730245903,-462.2012,0.00038888,30]
[400577083,1767730245913,-1500.0,0.00038904,5]
[400577084,1767730245922,-200.0,0.0003892,2]
[400577085,1767730245931,-200.0,0.0003892,2]
[400577086,1767730245940,-200.0,0.0003892,2]
[400577087,1767730245949,-200.0,0.0003892,2]
[400577088,1767730245958,-200.0,0.0003892,2]
[400577089,1767730245969,-200.0,0.0003892,2]
[400577090,1767730245978,-200.0,0.0003892,2]
[400577091,1767730245988,-200.0,0.0003892,2]
[400577093,1767730245998,-200.0,0.0003892,2]
[400577095,1767730246007,-200.0,0.0003892,2]
[400577097,1767730246017,-200.0,0.0003892,2]
[400577099,1767730246026,-200.0,0.0003892,2]
[400577101,1767730246035,-200.0,0.0003892,2]
[400577102,1767730246045,-200.0,0.0003892,2]
[400577104,1767730246054,-200.0,0.0003892,2]
[400577106,1767730246063,-200.0,0.0003892,2]
[400577108,1767730246072,-200.0,0.0003892,2]
[400577110,1767730246081,-200.0,0.0003892,2]
[400577112,1767730246091,-200.0,0.0003892,2]
[400577114,1767730246101,-200.0,0.0003892,2]
[400577116,1767730246110,-200.0,0.0003892,2]
[400577118,1767730246118,-200.0,0.0003892,2]
[400577120,1767730246127,-200.0,0.0003892,2]
[400577122,1767730246137,-200.0,0.0003892,2]
[400577124,1767730246146,-200.0,0.0003892,2]
[400577126,1767730246155,-200.0,0.0003892,2]
[400577128,1767730246164,-200.0,0.0003892,2]
[400577130,1767730246175,-200.0,0.0003892,2]
[400577131,1767730246185,-200.0,0.0003892,2]
[400577133,1767730246194,-200.0,0.0003892,2]
[400577134,1767730246203,-200.0,0.0003892,2]
[400577135,1767730246216,-200.0,0.0003892,2]
[400577136,1767730246226,-200.0,0.0003892,2]
[400577137,1767730246245,-200.0,0.0003892,2]
[400577138,1767730246256,-200.0,0.0003892,2]
[400577139,1767730246266,-200.0,0.0003892,2]
[400577140,1767730246276,-170.0,0.0003892,2]
[400577141,1767730246286,-323.58,0.00038968,2]
[400577142,1767730246297,-670.43,0.00039,14]
[400577143,1767730246309,-150.0,0.00039,2]
[400577144,1767730246319,-1551.65362228,0.00039113,2]
[400577145,1767730246329,-1551.65362228,0.00039113,2]
[400577146,1767730246342,-153.19,0.00039171,2]
[400577147,1767730246352,-501.0,0.00039275,12]
[400577148,1767730246364,-2629.6,0.00039295,6]
[400577149,1767730246374,-468.27387436,0.00039478,2]
[400577150,1767730246383,-1000.0,0.000396,7]
[400577151,1767730246393,-1306.08924953,0.00039726,5]
[400577152,1767730246403,-459.60853331,0.00039964,2]
[400577153,1767730246413,-500.0,0.00039999,31]
[400577154,1767730246423,-254.59449032,0.00039999,31]
[400577155,1767730246432,-273.3455365,0.00039999,31]
[400577156,1767730246442,-250.0,0.0004,45]
[400577157,1767730246451,-199.49149987,0.0004,2]
[400577158,1767730246461,-152.0,0.0004,120]
[400577159,1767730246470,-250.0,0.0004,45]
[400577160,1767730246480,-152.0,0.0004,120]